[Event "*** Titled Tuesday Blitz"]
[Site "Chess.com"]
[Date "2020.10.27"]
[Round "1"]
[White "TST2014"]
[Black "Dream2World_Number1"]
[Result "0-1"]
[WhiteElo "2494"]
[BlackElo "2025"]
[TimeControl "180+1"]
[EndTime "10:08:11 PDT"]
[Termination "Dream2World_Number1 won on time"]

1. d4 {[%clk 0:03:00.9]} 1... Nf6 {[%clk 0:02:59.7]} 2. c4 {[%clk 0:02:59.2]}
2... e6 {[%clk 0:03:00]} 3. Nf3 {[%clk 0:02:57.3]} 3... b6 {[%clk 0:02:59.8]} 4.
a3 {[%clk 0:02:57]} 4... Bb7 {[%clk 0:03:00.7]} 5. Nc3 {[%clk 0:02:56.8]} 5...
g6 {[%clk 0:03:00.2]} 6. g3 {[%clk 0:02:49.7]} 6... Bg7 {[%clk 0:03:00.1]} 7.
Bg2 {[%clk 0:02:49.8]} 7... O-O {[%clk 0:03:00.5]} 8. O-O {[%clk 0:02:49.7]}
8... Ne4 {[%clk 0:02:59.9]} 9. Qc2 {[%clk 0:02:42.6]} 9... Nxc3 {[%clk
0:02:59.6]} 10. Qxc3 {[%clk 0:02:43.2]} 10... d6 {[%clk 0:02:59.5]} 11. h4
{[%clk 0:02:40.6]} 11... h6 {[%clk 0:02:57.7]} 12. Re1 {[%clk 0:02:34.3]} 12...
Nd7 {[%clk 0:02:54.4]} 13. e4 {[%clk 0:02:34.2]} 13... e5 {[%clk 0:02:51]} 14.
d5 {[%clk 0:02:32.9]} 14... f5 {[%clk 0:02:48.6]} 15. h5 {[%clk 0:02:31.1]}
15... fxe4 {[%clk 0:02:35.2]} 16. Nh4 {[%clk 0:02:26.2]} 16... g5 {[%clk
0:02:31]} 17. Ng6 {[%clk 0:02:24]} 17... Rf7 {[%clk 0:02:22.2]} 18. Bxe4 {[%clk
0:02:17.3]} 18... Nf8 {[%clk 0:02:13.1]} 19. Qd3 {[%clk 0:02:10.5]} 19... Bc8
{[%clk 0:02:09.6]} 20. Be3 {[%clk 0:02:07.7]} 20... Qf6 {[%clk 0:02:00.1]} 21.
b4 {[%clk 0:02:01.8]} 21... Nxg6 {[%clk 0:01:54.8]} 22. Bxg6 {[%clk 0:01:54.1]}
22... Rf8 {[%clk 0:01:54.9]} 23. Be4 {[%clk 0:01:46.3]} 23... a5 {[%clk
0:01:51.7]} 24. c5 {[%clk 0:01:44.2]} 24... bxc5 {[%clk 0:01:40.4]} 25. bxc5
{[%clk 0:01:43.6]} 25... Bg4 {[%clk 0:01:38.7]} 26. Rab1 {[%clk 0:01:35.5]}
26... Bxh5 {[%clk 0:01:36.3]} 27. Rb7 {[%clk 0:01:34.1]} 27... Rf7 {[%clk
0:01:30.4]} 28. c6 {[%clk 0:01:30.4]} 28... Bf3 {[%clk 0:01:20]} 29. Reb1 {[%clk
0:01:22.1]} 29... Raf8 {[%clk 0:01:13.6]} 30. Ra7 {[%clk 0:01:13.4]} 30... h5
{[%clk 0:01:11.7]} 31. Rbb7 {[%clk 0:00:53.4]} 31... h4 {[%clk 0:01:10.1]} 32.
Rxc7 {[%clk 0:00:48.6]} 32... Rxc7 {[%clk 0:01:10.2]} 33. Rxc7 {[%clk
0:00:48.3]} 33... hxg3 {[%clk 0:01:10.4]} 34. fxg3 {[%clk 0:00:31.8]} 34... Bxe4
{[%clk 0:01:08.4]} 35. Qxe4 {[%clk 0:00:32.7]} 35... Qf1+ {[%clk 0:01:08.5]} 36.
Kh2 {[%clk 0:00:33.1]} 36... Qe2+ {[%clk 0:01:06.4]} 37. Kh3 {[%clk 0:00:27.4]}
37... Qf1+ {[%clk 0:00:46.7]} 38. Qg2 {[%clk 0:00:20.1]} 38... Qd3 {[%clk
0:00:36.3]} 39. Bxg5 {[%clk 0:00:17.7]} 39... Qf5+ {[%clk 0:00:35.4]} 40. Kh4
{[%clk 0:00:16.5]} 40... Qh7+ {[%clk 0:00:27.2]} 41. Kg4 {[%clk 0:00:15.5]}
41... Qf5+ {[%clk 0:00:27.1]} 42. Kh4 {[%clk 0:00:16]} 42... Bf6 {[%clk
0:00:21.7]} 43. Qd2 {[%clk 0:00:11.2]} 43... Qh7+ {[%clk 0:00:17.6]} 44. Kg4
{[%clk 0:00:10.6]} 44... Qxc7 {[%clk 0:00:17.4]} 45. Bxf6 {[%clk 0:00:09.9]}
45... Rxf6 {[%clk 0:00:16.1]} 46. Qg5+ {[%clk 0:00:10.3]} 46... Qg7 {[%clk
0:00:16.6]} 47. c7 {[%clk 0:00:10.3]} 47... Qxg5+ {[%clk 0:00:16.8]} 48. Kxg5
{[%clk 0:00:10.7]} 48... Rf8 {[%clk 0:00:17.7]} 49. g4 {[%clk 0:00:09.7]} 49...
Rc8 {[%clk 0:00:18.6]} 50. Kf5 {[%clk 0:00:09.9]} 50... Rxc7 {[%clk 0:00:19.5]}
51. Ke6 {[%clk 0:00:10.8]} 51... Rc3 {[%clk 0:00:19.3]} 52. Kxd6 {[%clk
0:00:11.3]} 52... Rxa3 {[%clk 0:00:20.2]} 53. Kxe5 {[%clk 0:00:11.5]} 53... Rd3
{[%clk 0:00:20.5]} 54. d6 {[%clk 0:00:12.1]} 54... a4 {[%clk 0:00:20.8]} 55. Ke4
{[%clk 0:00:12.6]} 55... Rxd6 {[%clk 0:00:20.8]} 0-1

[Event "*** Titled Tuesday Blitz"]
[Site "Chess.com"]
[Date "2020.10.27"]
[Round "1"]
[White "Mikhail_Golubev"]
[Black "natelleka"]
[Result "0-1"]
[WhiteElo "2536"]
[BlackElo "2191"]
[TimeControl "180+1"]
[EndTime "10:08:14 PDT"]
[Termination "natelleka won by resignation"]

1. e4 {[%clk 0:03:00.9]} 1... e5 {[%clk 0:02:59.1]} 2. Nf3 {[%clk 0:03:00.3]}
2... Nf6 {[%clk 0:02:59.6]} 3. Nc3 {[%clk 0:02:58.6]} 3... Bb4 {[%clk
0:02:58.6]} 4. Nxe5 {[%clk 0:02:57.6]} 4... O-O {[%clk 0:02:57.3]} 5. Nd3 {[%clk
0:02:57.1]} 5... Bxc3 {[%clk 0:02:57.1]} 6. dxc3 {[%clk 0:02:58]} 6... Nxe4
{[%clk 0:02:57.5]} 7. Be2 {[%clk 0:02:58.6]} 7... d5 {[%clk 0:02:51.2]} 8. O-O
{[%clk 0:02:58.3]} 8... Nc6 {[%clk 0:02:48.5]} 9. Nf4 {[%clk 0:02:56.9]} 9...
Nf6 {[%clk 0:02:41.9]} 10. Bf3 {[%clk 0:02:52.2]} 10... Be6 {[%clk 0:02:41.5]}
11. Re1 {[%clk 0:02:49.9]} 11... Qd6 {[%clk 0:02:34.8]} 12. c4 {[%clk
0:02:43.6]} 12... dxc4 {[%clk 0:02:12.6]} 13. Qxd6 {[%clk 0:02:42.5]} 13... cxd6
{[%clk 0:02:12.7]} 14. Nxe6 {[%clk 0:02:42.8]} 14... fxe6 {[%clk 0:02:11.8]} 15.
Rxe6 {[%clk 0:02:25.2]} 15... Rfe8 {[%clk 0:01:26.4]} 16. Rxe8+ {[%clk
0:02:20.2]} 16... Rxe8 {[%clk 0:01:25.8]} 17. Be3 {[%clk 0:02:17.5]} 17... d5
{[%clk 0:01:04.1]} 18. Rd1 {[%clk 0:02:16.4]} 18... d4 {[%clk 0:01:00.1]} 19.
Bxc6 {[%clk 0:02:12.9]} 19... bxc6 {[%clk 0:00:54.8]} 20. Bxd4 {[%clk
0:02:11.2]} 20... Rd8 {[%clk 0:00:51.7]} 21. c3 {[%clk 0:00:58]} 21... c5 {[%clk
0:00:47.9]} 22. f3 {[%clk 0:00:51.7]} 22... cxd4 {[%clk 0:00:47.1]} 23. cxd4
{[%clk 0:00:52.4]} 23... Nd5 {[%clk 0:00:43]} 24. Kf2 {[%clk 0:00:48.9]} 24...
Kf7 {[%clk 0:00:32.6]} 25. Rc1 {[%clk 0:00:45.1]} 25... Rc8 {[%clk 0:00:28.6]}
26. a3 {[%clk 0:00:43.7]} 26... c3 {[%clk 0:00:20.2]} 27. b4 {[%clk 0:00:26.7]}
27... Rc4 {[%clk 0:00:19.6]} 28. Rd1 {[%clk 0:00:22.7]} 28... c2 {[%clk
0:00:18.4]} 29. Rc1 {[%clk 0:00:22.9]} 29... Nc3 {[%clk 0:00:14.7]} 30. Ke3
{[%clk 0:00:05.8]} 30... Na2 {[%clk 0:00:13.6]} 31. Kd3 {[%clk 0:00:05.9]} 31...
Nxc1+ {[%clk 0:00:09.7]} 32. Kxc4 {[%clk 0:00:06.4]} 32... Ne2 {[%clk 0:00:08]}
33. Kd3 {[%clk 0:00:06]} 33... c1=Q {[%clk 0:00:06.9]} 34. g3 {[%clk 0:00:06.1]}
34... Qd1+ {[%clk 0:00:06.2]} 35. Ke3 {[%clk 0:00:06]} 35... Qxd4+ {[%clk
0:00:05.9]} 36. Kxe2 {[%clk 0:00:05.3]} 36... Qb2+ {[%clk 0:00:06.1]} 37. Kd3
{[%clk 0:00:05]} 37... Qxa3+ {[%clk 0:00:06.6]} 38. Kc4 {[%clk 0:00:05.4]} 38...
Qa2+ {[%clk 0:00:06.6]} 39. Kb5 {[%clk 0:00:05.5]} 39... Qb3 {[%clk 0:00:06.4]}
40. Ka5 {[%clk 0:00:05.3]} 40... Ke6 {[%clk 0:00:05.8]} 41. Kb5 {[%clk
0:00:05.4]} 41... Kd6 {[%clk 0:00:05.8]} 42. f4 {[%clk 0:00:05.8]} 42... Kc7
{[%clk 0:00:05.5]} 43. Kc5 {[%clk 0:00:05.8]} 43... Kb7 {[%clk 0:00:05.7]} 44.
Kb5 {[%clk 0:00:05.1]} 44... a6+ {[%clk 0:00:05.3]} 45. Kc5 {[%clk 0:00:04.8]}
45... Qc3+ {[%clk 0:00:05.5]} 46. Kd5 {[%clk 0:00:04.1]} 46... Qxb4 {[%clk
0:00:05.8]} 47. Ke6 {[%clk 0:00:05]} 47... Qe4+ {[%clk 0:00:05.1]} 48. Kf7
{[%clk 0:00:05.9]} 48... Qd4 {[%clk 0:00:05.2]} 49. Kg8 {[%clk 0:00:05.7]} 49...
h6 {[%clk 0:00:04.6]} 50. Kh7 {[%clk 0:00:06.6]} 50... Kc7 {[%clk 0:00:04.9]}
51. Kg6 {[%clk 0:00:06.5]} 51... Kd7 {[%clk 0:00:05.5]} 52. g4 {[%clk
0:00:06.5]} 52... Ke7 {[%clk 0:00:05.9]} 53. f5 {[%clk 0:00:06.9]} 53... Qf6+
{[%clk 0:00:05.8]} 54. Kh7 {[%clk 0:00:07.2]} 54... Kf7 {[%clk 0:00:05.1]} 55.
h4 {[%clk 0:00:03.6]} 55... Qd8 {[%clk 0:00:05]} 0-1

[Event "*** Titled Tuesday Blitz"]
[Site "Chess.com"]
[Date "2020.10.27"]
[Round "1"]
[White "Chessdreamer2020"]
[Black "BilodeauA"]
[Result "0-1"]
[WhiteElo "2465"]
[BlackElo "2898"]
[TimeControl "180+1"]
[EndTime "10:08:16 PDT"]
[Termination "BilodeauA won on time"]

1. e4 {[%clk 0:02:47.1]} 1... c5 {[%clk 0:02:58.8]} 2. Nf3 {[%clk 0:02:46.6]}
2... Nc6 {[%clk 0:02:59.3]} 3. Bb5 {[%clk 0:02:45.7]} 3... g6 {[%clk 0:02:58.2]}
4. O-O {[%clk 0:02:45.1]} 4... Bg7 {[%clk 0:02:57.8]} 5. c3 {[%clk 0:02:45.7]}
5... Nf6 {[%clk 0:02:57.5]} 6. Qa4 {[%clk 0:02:46.3]} 6... O-O {[%clk
0:02:56.7]} 7. d4 {[%clk 0:02:46.4]} 7... cxd4 {[%clk 0:02:38]} 8. cxd4 {[%clk
0:02:47.3]} 8... d6 {[%clk 0:02:38.7]} 9. Bxc6 {[%clk 0:02:42.3]} 9... bxc6
{[%clk 0:02:38.7]} 10. Qxc6 {[%clk 0:02:42.5]} 10... Bd7 {[%clk 0:02:38.4]} 11.
Qc2 {[%clk 0:02:40.3]} 11... Rc8 {[%clk 0:02:25.6]} 12. Nc3 {[%clk 0:02:40.1]}
12... d5 {[%clk 0:02:18.7]} 13. e5 {[%clk 0:02:00.9]} 13... Ne4 {[%clk
0:02:19.1]} 14. Be3 {[%clk 0:01:50.4]} 14... Qa5 {[%clk 0:02:13.7]} 15. Rfc1
{[%clk 0:01:46.7]} 15... Bf5 {[%clk 0:02:09.8]} 16. Qb3 {[%clk 0:01:45.4]} 16...
Nxc3 {[%clk 0:02:06.2]} 17. Rxc3 {[%clk 0:01:41.3]} 17... Rxc3 {[%clk
0:01:56.9]} 18. Qxc3 {[%clk 0:01:40.9]} 18... Qxc3 {[%clk 0:01:56.5]} 19. bxc3
{[%clk 0:01:41.1]} 19... Rc8 {[%clk 0:01:57.3]} 20. Bd2 {[%clk 0:01:26.3]} 20...
f6 {[%clk 0:01:56.6]} 21. Kf1 {[%clk 0:01:25.1]} 21... Bd3+ {[%clk 0:01:55.2]}
22. Ke1 {[%clk 0:01:24.2]} 22... Kf7 {[%clk 0:01:55.8]} 23. Kd1 {[%clk
0:01:14.8]} 23... g5 {[%clk 0:01:55.6]} 24. h3 {[%clk 0:01:14.1]} 24... h5
{[%clk 0:01:55.2]} 25. Ne1 {[%clk 0:01:08.4]} 25... Bg6 {[%clk 0:01:44]} 26.
exf6 {[%clk 0:01:08.4]} 26... exf6 {[%clk 0:01:44.1]} 27. a4 {[%clk 0:01:04.6]}
27... Bf8 {[%clk 0:01:42.4]} 28. Ra2 {[%clk 0:01:04]} 28... Rb8 {[%clk
0:01:41.6]} 29. Ke2 {[%clk 0:01:02.3]} 29... Re8+ {[%clk 0:01:32.2]} 30. Be3
{[%clk 0:01:01.4]} 30... f5 {[%clk 0:01:32.3]} 31. Nd3 {[%clk 0:00:53.7]} 31...
f4 {[%clk 0:01:32.5]} 32. Ne5+ {[%clk 0:00:53.7]} 32... Rxe5 {[%clk 0:01:33.2]}
33. dxe5 {[%clk 0:00:53.8]} 33... fxe3 {[%clk 0:01:33.9]} 34. Kxe3 {[%clk
0:00:53.5]} 34... Bc5+ {[%clk 0:01:33.6]} 35. Ke2 {[%clk 0:00:53.1]} 35... Ke6
{[%clk 0:01:32]} 36. Rb2 {[%clk 0:00:48.7]} 36... Kxe5 {[%clk 0:01:32]} 37. Rb7
{[%clk 0:00:48.7]} 37... Be8 {[%clk 0:01:28.8]} 38. Rg7 {[%clk 0:00:47.3]} 38...
Kf6 {[%clk 0:01:26.1]} 39. Rh7 {[%clk 0:00:47.2]} 39... Bxa4 {[%clk 0:01:23.3]}
40. Rxh5 {[%clk 0:00:46.9]} 40... a5 {[%clk 0:01:19.6]} 41. h4 {[%clk
0:00:45.3]} 41... Bb3 {[%clk 0:01:11.2]} 42. hxg5+ {[%clk 0:00:44]} 42... Kg6
{[%clk 0:01:11.1]} 43. g4 {[%clk 0:00:41.8]} 43... Bc4+ {[%clk 0:01:07.4]} 44.
Ke1 {[%clk 0:00:29.5]} 44... a4 {[%clk 0:01:07.7]} 45. f4 {[%clk 0:00:29.7]}
45... a3 {[%clk 0:01:08.3]} 46. Rh8 {[%clk 0:00:27.1]} 46... a2 {[%clk
0:01:04.1]} 47. Rg8+ {[%clk 0:00:26.8]} 47... Kf7 {[%clk 0:01:03.4]} 48. Ra8
{[%clk 0:00:27]} 48... Be3 {[%clk 0:01:04.2]} 49. f5 {[%clk 0:00:20.4]} 49...
Bxg5 {[%clk 0:01:04.5]} 50. Kd1 {[%clk 0:00:19.4]} 50... Kf6 {[%clk 0:01:02.2]}
51. Kc2 {[%clk 0:00:19.2]} 51... Be3 {[%clk 0:01:01.4]} 52. Kb2 {[%clk
0:00:19.7]} 52... Bd2 {[%clk 0:00:57.9]} 53. Rf8+ {[%clk 0:00:19]} 53... Kg7
{[%clk 0:00:56.9]} 54. Ra8 {[%clk 0:00:18]} 54... Kf7 {[%clk 0:00:52.2]} 55.
Ra7+ {[%clk 0:00:11.3]} 55... Kf6 {[%clk 0:00:52.6]} 56. Ra8 {[%clk 0:00:11.9]}
56... Be3 {[%clk 0:00:53.2]} 57. Rf8+ {[%clk 0:00:10.8]} 57... Kg7 {[%clk
0:00:51.8]} 58. Ra8 {[%clk 0:00:10.1]} 58... d4 {[%clk 0:00:52.3]} 59. Ra4
{[%clk 0:00:05.8]} 59... dxc3+ {[%clk 0:00:24.5]} 60. Kxc3 {[%clk 0:00:05.7]}
60... Bf7 {[%clk 0:00:22]} 61. Kd3 {[%clk 0:00:05.3]} 61... Bg5 {[%clk
0:00:20.7]} 0-1

[Event "*** Titled Tuesday Blitz"]
[Site "Chess.com"]
[Date "2020.10.27"]
[Round "1"]
[White "Ajedrez_con_German"]
[Black "HouseOfDurin"]
[Result "1-0"]
[WhiteElo "2542"]
[BlackElo "2150"]
[TimeControl "180+1"]
[EndTime "10:08:20 PDT"]
[Termination "Ajedrez_con_German won on time"]

1. Nf3 {[%clk 0:03:00.4]} 1... c5 {[%clk 0:02:59.1]} 2. c4 {[%clk 0:02:56.8]}
2... Nc6 {[%clk 0:02:59.4]} 3. d4 {[%clk 0:02:57]} 3... cxd4 {[%clk 0:02:58.5]}
4. Nxd4 {[%clk 0:02:57.9]} 4... e5 {[%clk 0:02:58.1]} 5. Nc2 {[%clk 0:02:57.6]}
5... Nf6 {[%clk 0:02:55]} 6. Nc3 {[%clk 0:02:57.7]} 6... Be7 {[%clk 0:02:52.8]}
7. g3 {[%clk 0:02:57.9]} 7... O-O {[%clk 0:02:53.2]} 8. Bg2 {[%clk 0:02:58.1]}
8... d6 {[%clk 0:02:53.7]} 9. O-O {[%clk 0:02:58.1]} 9... Be6 {[%clk 0:02:54.2]}
10. Ne3 {[%clk 0:02:57]} 10... Rc8 {[%clk 0:02:49.8]} 11. b3 {[%clk 0:02:54.4]}
11... a6 {[%clk 0:02:42.1]} 12. Bb2 {[%clk 0:02:52.8]} 12... Qd7 {[%clk
0:02:32.1]} 13. Ncd5 {[%clk 0:02:50.9]} 13... Bxd5 {[%clk 0:02:31.2]} 14. Nxd5
{[%clk 0:02:51.8]} 14... Nxd5 {[%clk 0:02:30.6]} 15. Bxd5 {[%clk 0:02:51.5]}
15... Rfd8 {[%clk 0:02:23.6]} 16. e3 {[%clk 0:02:50.3]} 16... Nb4 {[%clk
0:02:18.3]} 17. Bg2 {[%clk 0:02:43.5]} 17... d5 {[%clk 0:02:14.4]} 18. Bxe5
{[%clk 0:02:31.8]} 18... Qe6 {[%clk 0:01:58.9]} 19. Bd4 {[%clk 0:02:02.2]} 19...
dxc4 {[%clk 0:01:47.4]} 20. bxc4 {[%clk 0:01:53.7]} 20... Rxc4 {[%clk
0:01:39.2]} 21. Bxb7 {[%clk 0:01:50.5]} 21... Nc2 {[%clk 0:01:38.7]} 22. Rc1
{[%clk 0:01:30.5]} 22... Nxd4 {[%clk 0:01:37.8]} 23. Rxc4 {[%clk 0:01:25.9]}
23... Qxc4 {[%clk 0:01:30.6]} 24. exd4 {[%clk 0:01:25.2]} 24... Qxd4 {[%clk
0:01:00.1]} 25. Qf3 {[%clk 0:00:54.2]} 25... a5 {[%clk 0:00:37.5]} 26. Re1
{[%clk 0:00:45.9]} 26... Qf6 {[%clk 0:00:27.5]} 27. Qe4 {[%clk 0:00:37.9]} 27...
Bc5 {[%clk 0:00:24.6]} 28. Re2 {[%clk 0:00:31.1]} 28... g6 {[%clk 0:00:20.1]}
29. Kg2 {[%clk 0:00:30.5]} 29... Rd6 {[%clk 0:00:16.2]} 30. Bd5 {[%clk
0:00:27.5]} 30... Kg7 {[%clk 0:00:15]} 31. Bb3 {[%clk 0:00:26.6]} 31... Rd4
{[%clk 0:00:13.9]} 32. Qe5 {[%clk 0:00:23.4]} 32... Qxe5 {[%clk 0:00:12]} 33.
Rxe5 {[%clk 0:00:24.3]} 33... Bb6 {[%clk 0:00:09.8]} 34. Rb5 {[%clk 0:00:23.5]}
34... Rd6 {[%clk 0:00:06.1]} 35. h4 {[%clk 0:00:22.5]} 35... h5 {[%clk
0:00:04.7]} 36. Re5 {[%clk 0:00:20]} 36... Rf6 {[%clk 0:00:04.8]} 37. f4 {[%clk
0:00:19.6]} 37... Bc7 {[%clk 0:00:03.2]} 38. Re7 {[%clk 0:00:18.9]} 38... Bd6
{[%clk 0:00:02.5]} 39. Ra7 {[%clk 0:00:18.6]} 39... Bb4 {[%clk 0:00:02.9]} 40.
Kf3 {[%clk 0:00:18.4]} 40... Rf5 {[%clk 0:00:02.6]} 41. Bc4 {[%clk 0:00:17.6]}
41... Rf6 {[%clk 0:00:02.5]} 42. a4 {[%clk 0:00:17.6]} 42... Bc3 {[%clk
0:00:02.9]} 43. Bd5 {[%clk 0:00:16.2]} 43... Bb4 {[%clk 0:00:03.3]} 44. Be4
{[%clk 0:00:16]} 44... Bc3 {[%clk 0:00:03.7]} 45. Rc7 {[%clk 0:00:15.1]} 45...
Bb4 {[%clk 0:00:03.4]} 46. Bd5 {[%clk 0:00:14.6]} 46... Bd6 {[%clk 0:00:03.3]}
47. Rb7 {[%clk 0:00:13.3]} 47... Bb4 {[%clk 0:00:03.6]} 48. Rd7 {[%clk
0:00:13.2]} 48... Bc3 {[%clk 0:00:03.7]} 49. Ke4 {[%clk 0:00:12.8]} 49... Bb4
{[%clk 0:00:04.2]} 50. Ra7 {[%clk 0:00:12.1]} 50... Bc3 {[%clk 0:00:04.4]} 51.
Rb7 {[%clk 0:00:11.9]} 51... Bb4 {[%clk 0:00:05.1]} 52. Rc7 {[%clk 0:00:12]}
52... Bd2 {[%clk 0:00:04.7]} 53. Kf3 {[%clk 0:00:11.8]} 53... Bb4 {[%clk
0:00:05]} 54. Be4 {[%clk 0:00:11.1]} 54... Bd2 {[%clk 0:00:04.8]} 55. Rd7 {[%clk
0:00:11.1]} 55... Bb4 {[%clk 0:00:05.2]} 56. Rd5 {[%clk 0:00:11.5]} 56... Bc3
{[%clk 0:00:05.1]} 57. f5 {[%clk 0:00:11.9]} 57... Bb4 {[%clk 0:00:02.1]} 58.
Kg2 {[%clk 0:00:11.5]} 58... Kh6 {[%clk 0:00:01.8]} 59. fxg6 {[%clk 0:00:11.7]}
59... fxg6 {[%clk 0:00:01.4]} 60. Rd7 {[%clk 0:00:11.9]} 60... Bd2 {[%clk
0:00:01.6]} 61. Bf3 {[%clk 0:00:11.4]} 1-0

[Event "*** Titled Tuesday Blitz"]
[Site "Chess.com"]
[Date "2020.10.27"]
[Round "1"]
[White "oskariot"]
[Black "kakakz"]
[Result "1-0"]
[WhiteElo "2715"]
[BlackElo "2365"]
[TimeControl "180+1"]
[EndTime "10:08:21 PDT"]
[Termination "oskariot won by resignation"]

1. e4 {[%clk 0:03:00.9]} 1... c5 {[%clk 0:02:59.4]} 2. Nf3 {[%clk 0:03:00.9]}
2... d6 {[%clk 0:02:57.8]} 3. d4 {[%clk 0:03:00.8]} 3... cxd4 {[%clk 0:02:58.7]}
4. Nxd4 {[%clk 0:03:01.7]} 4... Nf6 {[%clk 0:02:57.3]} 5. Nc3 {[%clk 0:03:02.3]}
5... Nc6 {[%clk 0:02:58.2]} 6. Be2 {[%clk 0:03:01.2]} 6... e5 {[%clk 0:02:57.7]}
7. Nb3 {[%clk 0:03:01.6]} 7... Be7 {[%clk 0:02:55.7]} 8. O-O {[%clk 0:03:02.1]}
8... a5 {[%clk 0:02:55.1]} 9. a4 {[%clk 0:03:02]} 9... O-O {[%clk 0:02:51.7]}
10. f4 {[%clk 0:03:02.4]} 10... Nb4 {[%clk 0:02:19.1]} 11. Kh1 {[%clk
0:02:59.2]} 11... Be6 {[%clk 0:02:15.1]} 12. f5 {[%clk 0:02:57.6]} 12... Bd7
{[%clk 0:02:14.1]} 13. Nd5 {[%clk 0:02:34.1]} 13... Nxe4 {[%clk 0:01:50.1]} 14.
Nxe7+ {[%clk 0:02:33.6]} 14... Qxe7 {[%clk 0:01:51]} 15. c3 {[%clk 0:02:34.5]}
15... Na6 {[%clk 0:01:46.8]} 16. f6 {[%clk 0:02:15.4]} 16... Nxf6 {[%clk
0:01:40.5]} 17. Bg5 {[%clk 0:02:15.3]} 17... Nc7 {[%clk 0:01:32.1]} 18. Bxf6
{[%clk 0:02:00.2]} 18... gxf6 {[%clk 0:01:31.2]} 19. Qd2 {[%clk 0:02:00]} 19...
f5 {[%clk 0:01:23.5]} 20. Qh6 {[%clk 0:01:58.6]} 20... Qe6 {[%clk 0:01:04.6]}
21. Qg5+ {[%clk 0:01:54]} 21... Kh8 {[%clk 0:00:55.6]} 22. Nd2 {[%clk
0:01:53.9]} 22... Rg8 {[%clk 0:00:47.9]} 23. Qh4 {[%clk 0:01:54.1]} 23... Nd5
{[%clk 0:00:43.9]} 24. Bc4 {[%clk 0:01:49.6]} 24... Bc6 {[%clk 0:00:39.7]} 25.
Rf2 {[%clk 0:01:27.1]} 25... Rg4 {[%clk 0:00:39]} 26. Qh3 {[%clk 0:01:25.8]}
26... Rag8 {[%clk 0:00:38.4]} 27. Rg1 {[%clk 0:01:24.6]} 27... Qg6 {[%clk
0:00:28.5]} 28. Bxd5 {[%clk 0:01:10.8]} 28... Bxd5 {[%clk 0:00:26.4]} 29. Nf3
{[%clk 0:01:11.7]} 29... f4 {[%clk 0:00:22.6]} 30. Rd2 {[%clk 0:01:06.3]} 30...
Bc6 {[%clk 0:00:22.3]} 31. Rf2 {[%clk 0:00:54.5]} 31... e4 {[%clk 0:00:22.2]}
32. Nd4 {[%clk 0:00:49.4]} 32... Bd5 {[%clk 0:00:15.7]} 33. c4 {[%clk
0:00:41.7]} 33... f3 {[%clk 0:00:11.2]} 34. cxd5 {[%clk 0:00:34.5]} 34... e3
{[%clk 0:00:07.6]} 35. Rxf3 {[%clk 0:00:32.5]} 35... Rxd4 {[%clk 0:00:08.5]} 36.
Rxe3 {[%clk 0:00:29.1]} 36... Rxa4 {[%clk 0:00:09]} 37. Rg3 {[%clk 0:00:28.9]}
37... Rg4 {[%clk 0:00:09]} 38. Rxg4 {[%clk 0:00:28.4]} 38... Qxg4 {[%clk
0:00:09.9]} 39. Qc3+ {[%clk 0:00:29.3]} 39... Rg7 {[%clk 0:00:09.3]} 40. Qxa5
{[%clk 0:00:29]} 40... h6 {[%clk 0:00:09.2]} 41. Qd8+ {[%clk 0:00:28.2]} 41...
Kh7 {[%clk 0:00:09.4]} 42. Qxd6 {[%clk 0:00:28.4]} 42... Qd4 {[%clk 0:00:09.2]}
43. b4 {[%clk 0:00:26]} 43... Qf2 {[%clk 0:00:06.7]} 44. Qc5 {[%clk 0:00:22.8]}
44... Qd2 {[%clk 0:00:04.4]} 45. d6 {[%clk 0:00:20.7]} 45... Rg6 {[%clk
0:00:04.7]} 46. Qf5 {[%clk 0:00:20.2]} 46... Kg7 {[%clk 0:00:04.8]} 47. Qe5+
{[%clk 0:00:20.1]} 47... Kh7 {[%clk 0:00:04.8]} 48. Qe7 {[%clk 0:00:20]} 48...
Kg7 {[%clk 0:00:05.1]} 49. Qxb7 {[%clk 0:00:19.8]} 49... Rxd6 {[%clk 0:00:06]}
50. b5 {[%clk 0:00:19.9]} 50... Qf2 {[%clk 0:00:04.3]} 51. Qf3 {[%clk
0:00:19.8]} 51... Qxf3 {[%clk 0:00:04.1]} 52. gxf3+ {[%clk 0:00:20.7]} 52... Kf6
{[%clk 0:00:05]} 53. Rb1 {[%clk 0:00:21.2]} 53... Rb6 {[%clk 0:00:05.9]} 54. Kg2
{[%clk 0:00:21.5]} 54... Ke5 {[%clk 0:00:06.8]} 55. Kg3 {[%clk 0:00:22]} 55...
Kd5 {[%clk 0:00:07.7]} 56. Kf4 {[%clk 0:00:22.3]} 56... Kc5 {[%clk 0:00:07.9]}
57. Kf5 {[%clk 0:00:22.7]} 57... Rg6 {[%clk 0:00:07.9]} 58. b6 {[%clk
0:00:22.4]} 58... Rg5+ {[%clk 0:00:08.8]} 59. Kf6 {[%clk 0:00:22.4]} 59... Rg8
{[%clk 0:00:09.7]} 60. b7 {[%clk 0:00:21.9]} 60... Rb8 {[%clk 0:00:10.6]} 61.
Kxf7 {[%clk 0:00:22.4]} 61... Kd4 {[%clk 0:00:11.5]} 62. Kg6 {[%clk 0:00:19.2]}
62... Ke3 {[%clk 0:00:12.4]} 63. Rb3+ {[%clk 0:00:19.6]} 63... Kf4 {[%clk
0:00:12.2]} 64. Kxh6 {[%clk 0:00:19.5]} 1-0